fUST/lending_fUST_20250315
["ID","MTS","AMOUNT","RATE_DAILY","PERIOD"]
[356169153,1741998632767,-500.0,8.219e-05,2]
[356169154,1741998632776,-500.0,8.219e-05,2]
[356169155,1741998632786,-500.0,8.219e-05,2]
[356169156,1741998632795,-552.16,8.219e-05,2]
[356169157,1741998632804,-569.90006043,8.219e-05,2]
[356169158,1741998632813,-521.62611794,8.219e-05,2]
[356169159,1741998632823,-500.0,8.219e-05,2]
[356169160,1741998632832,-500.0,8.219e-05,2]
[356169161,1741998632842,-500.0,8.219e-05,2]
[356169162,1741998632852,-500.0,8.219e-05,2]
[356169163,1741998632862,-500.0,8.219e-05,2]
[356169164,1741998632871,-500.0,8.219e-05,2]
[356169165,1741998632881,-500.0,8.219e-05,2]
[356169166,1741998632890,-500.0,8.219e-05,2]
[356169167,1741998632911,-500.0,8.219e-05,2]
[356169168,1741998632920,-519.77981328,8.219e-05,2]
[356169169,1741998632930,-500.0,8.219e-05,2]
[356169170,1741998632940,-520.06302295,8.219e-05,2]
[356169171,1741998632950,-500.0,8.219e-05,2]
[356169172,1741998632960,-513.8267618,8.219e-05,2]
[356169173,1741998632970,-355.70715646,8.219e-05,2]
[356169174,1741998632981,-516.74929057,8.219e-05,2]
[356169175,1741998632994,-500.0,8.219e-05,2]
[356169176,1741998633005,-500.0,8.219e-05,2]
[356169177,1741998633015,-500.0,8.219e-05,2]
[356169178,1741998633028,-500.0,8.219e-05,2]
[356169179,1741998633039,-514.86665195,8.219e-05,2]
[356169180,1741998633050,-500.0,8.219e-05,2]
[356169181,1741998633061,-500.0,8.219e-05,2]
[356169182,1741998633071,-500.0,8.219e-05,2]
[356169183,1741998633082,-500.0,8.219e-05,2]
[356169184,1741998633091,-500.0,8.219e-05,2]
[356169185,1741998633101,-511.64,8.219e-05,2]
[356169186,1741998633113,-500.0,8.219e-05,2]
[356169187,1741998633123,-500.0,8.219e-05,2]
[356169188,1741998633133,-500.0,8.219e-05,2]
[356169189,1741998633143,-500.0,8.219e-05,2]
[356169190,1741998633154,-229.31550462,8.219e-05,2]
[356169191,1741998633164,-500.0,8.219e-05,2]
[356169192,1741998633175,-500.0,8.219e-05,2]
[356169193,1741998633184,-500.0,8.219e-05,2]
[356169194,1741998633195,-500.0,8.219e-05,2]
[356169195,1741998633205,-500.0,8.219e-05,2]
[356169196,1741998633215,-500.0,8.219e-05,2]
[356169197,1741998633224,-500.0,8.219e-05,2]
[356169198,1741998633234,-504.73056009,8.219e-05,2]
[356169199,1741998633244,-500.0,8.219e-05,2]
[356169200,1741998633254,-500.0,8.219e-05,2]
[356169201,1741998633264,-500.0,8.219e-05,2]
[356169202,1741998633275,-500.0,8.219e-05,2]
[356169203,1741998633285,-500.0,8.219e-05,2]
[356169204,1741998633295,-500.0,8.219e-05,2]
[356169205,1741998633305,-709.37,8.219e-05,2]
[356169206,1741998633315,-500.0,8.219e-05,2]
[356169207,1741998633324,-500.0,8.219e-05,2]
[356169208,1741998633334,-468.61058624,8.219e-05,2]
[356169209,1741998633344,-500.0,8.219e-05,2]
[356169210,1741998633354,-549.45826415,8.219e-05,2]
[356169211,1741998633364,-500.0,8.219e-05,2]
[356169212,1741998633374,-500.0,8.219e-05,2]
[356169213,1741998633384,-502.8315158,8.219e-05,2]
[356169214,1741998633394,-500.0,8.219e-05,2]
[356169215,1741998633404,-509.3799871,8.219e-05,2]
[356169216,1741998633414,-500.0,8.219e-05,2]
[356169217,1741998633424,-500.0,8.219e-05,2]
[356169218,1741998633433,-787.61,8.219e-05,2]
[356169219,1741998633443,-500.0,8.219e-05,2]
[356169220,1741998633453,-500.0,8.219e-05,2]
[356169221,1741998633463,-500.0,8.219e-05,2]
[356169222,1741998633473,-500.0,8.219e-05,2]
[356169223,1741998633483,-500.0,8.219e-05,2]
[356169224,1741998633493,-500.0,8.219e-05,2]
[356169225,1741998633503,-708.36,8.219e-05,2]
[356169226,1741998633513,-500.0,8.219e-05,2]
[356169227,1741998633523,-500.0,8.219e-05,2]
[356169228,1741998633532,-726.41,8.219e-05,2]
[356169229,1741998633543,-500.0,8.219e-05,2]
[356169230,1741998633553,-500.0,8.219e-05,2]
[356169231,1741998633563,-500.0,8.219e-05,2]
[356169232,1741998633573,-500.0,8.219e-05,2]
[356169233,1741998633583,-500.0,8.219e-05,2]
[356169234,1741998633593,-500.0,8.219e-05,2]
[356169235,1741998633603,-1727.43,8.219e-05,2]
[356169236,1741998633613,-500.0,8.219e-05,2]
[356169237,1741998633623,-500.0,8.219e-05,2]
[356169238,1741998633633,-500.0,8.219e-05,2]
[356169239,1741998633643,-500.0,8.219e-05,2]
[356169240,1741998633653,-500.0,8.219e-05,2]
[356169241,1741998633664,-539.96,8.219e-05,2]
[356169242,1741998633679,-500.0,8.219e-05,2]
[356169243,1741998633689,-500.0,8.219e-05,2]
[356169244,1741998633699,-500.0,8.219e-05,2]
[356169245,1741998633711,-500.0,8.219e-05,2]
[356169246,1741998633721,-500.0,8.219e-05,2]
[356169247,1741998633732,-500.0,8.219e-05,2]
[356169248,1741998633745,-500.0,8.219e-05,2]
[356169249,1741998633755,-500.0,8.219e-05,2]
[356169250,1741998633766,-500.0,8.219e-05,2]
[356169251,1741998633775,-602.64338301,8.219e-05,2]
[356169252,1741998633786,-500.0,8.219e-05,2]
[356169253,1741998633796,-740.62,8.219e-05,2]
[356169254,1741998633806,-500.0,8.219e-05,2]
[356169255,1741998633816,-500.0,8.219e-05,2]
[356169256,1741998633826,-500.0,8.219e-05,2]
[356169257,1741998633837,-500.0,8.219e-05,2]
[356169258,1741998633847,-500.0,8.219e-05,2]
[356169259,1741998633857,-545.12,8.219e-05,2]
[356169260,1741998633868,-500.0,8.219e-05,2]
[356169261,1741998633878,-500.0,8.219e-05,2]
[356169262,1741998633892,-500.0,8.219e-05,2]
[356169263,1741998633903,-500.0,8.219e-05,2]
[356169264,1741998633912,-172.38688901,8.219e-05,2]
[356169265,1741998633923,-500.0,8.219e-05,2]
[356169266,1741998633932,-500.0,8.219e-05,2]
[356169267,1741998633943,-500.0,8.219e-05,2]
[356169268,1741998633953,-510.4787682,8.219e-05,2]
[356169269,1741998633963,-500.0,8.219e-05,2]
[356169270,1741998633973,-500.0,8.219e-05,2]
[356169271,1741998633984,-500.0,8.219e-05,2]
[356169272,1741998633995,-1019.67,8.219e-05,2]
[356169273,1741998634005,-500.0,8.219e-05,2]
[356169274,1741998634015,-500.0,8.219e-05,2]
[356169275,1741998634025,-500.0,8.219e-05,2]
[356169276,1741998634035,-1111.87,8.219e-05,2]
[356169277,1741998634047,-500.06,8.219e-05,2]
[356169278,1741998634058,-369.27341826,8.219e-05,2]
[356169289,1741998637728,-428.99658174,8.219e-05,2]
[356169290,1741998637738,-500.0,8.219e-05,2]
[356169291,1741998637747,-500.0,8.219e-05,2]
[356169292,1741998637758,-500.0,8.219e-05,2]
[356169293,1741998637769,-500.0,8.219e-05,2]
[356169294,1741998637779,-621.67,8.219e-05,2]
[356169295,1741998637788,-500.0,8.219e-05,2]
[356169296,1741998637797,-500.0,8.219e-05,2]
[356169297,1741998637806,-500.0,8.219e-05,2]
[356169298,1741998637815,-500.0,8.219e-05,2]
[356169299,1741998637825,-108.87727726,8.219e-05,2]
[356169361,1741999539895,3183.40427783,8e-05,2]
[356169362,1741999547072,500.0,8e-05,2]
[356169376,1741999826512,500.0,8e-05,2]
[356169390,1741999832329,-300.0,8.017e-05,2]
[356169391,1741999832339,-238.5661376,8.018e-05,2]
[356169392,1741999832350,-196.94581877,8.018e-05,2]
[356169393,1741999832360,-497.87286464,8.018e-05,2]
[356169394,1741999832370,-399.12848747,8.018e-05,2]
[356169395,1741999832380,-166.99629632,8.018e-05,2]
[356169396,1741999832389,-500.0,8.018e-05,2]
[356169397,1741999832399,-500.0,8.018e-05,2]
[356169398,1741999832409,-500.0,8.018e-05,2]
[356169399,1741999832419,-500.0,8.018e-05,2]
[356169400,1741999832429,-222000.0,8.019e-05,2]
[356169401,1741999832438,-800.0,8.051e-05,2]
[356169402,1741999832448,-800.0,8.071e-05,2]
[356169403,1741999832458,-800.0,8.075e-05,2]
[356169404,1741999832467,-2212.16537013,8.091e-05,2]
[356169405,1741999832477,-800.0,8.097e-05,2]
[356169406,1741999832487,-2212.16537012,8.123e-05,2]
[356169407,1741999832497,-311.91103414,8.128e-05,2]
[356169408,1741999832506,-800.0,8.143e-05,2]
[356169409,1741999832515,-368.9506101,8.15e-05,2]
[356169410,1741999832525,-2212.16537012,8.155e-05,2]
[356169411,1741999832534,-672.51840011,8.157e-05,2]
[356169412,1741999832544,-2212.16537012,8.187e-05,2]
[356169413,1741999832554,-800.0,8.189e-05,2]
[356169414,1741999832563,-2355.77730738,8.19e-05,2]
[356169415,1741999832574,-500.0,8.193e-05,2]
[356169416,1741999832583,-500.0,8.193e-05,2]
[356169417,1741999832593,-500.0,8.193e-05,2]
[356169418,1741999832604,-500.0,8.193e-05,2]
[356169419,1741999832614,-500.0,8.193e-05,2]
[356169420,1741999832624,-460.69698179,8.193e-05,2]
[356169421,1741999832634,-500.0,8.193e-05,2]
[356169422,1741999832643,-500.0,8.193e-05,2]
[356169423,1741999832653,-565.49129904,8.193e-05,2]
[356169424,1741999832663,-500.0,8.193e-05,2]
[356169425,1741999832672,-500.0,8.193e-05,2]
[356169426,1741999832682,-800.0,8.217e-05,2]
[356169427,1741999832692,-181.81819396,8.218e-05,2]
[356169428,1741999832701,-500.0,8.219e-05,2]
[356169429,1741999832711,-500.0,8.219e-05,2]
[356169430,1741999832720,-500.0,8.219e-05,2]
[356169431,1741999832730,-500.0,8.219e-05,2]
[356169432,1741999832739,-500.0,8.219e-05,2]
[356169433,1741999832749,-500.0,8.219e-05,2]
[356169434,1741999832758,-500.0,8.219e-05,2]
[356169435,1741999832767,-500.0,8.219e-05,2]
[356169436,1741999832776,-500.0,8.219e-05,2]
[356169437,1741999832786,-391.12272274,8.219e-05,2]
[356169438,1741999832795,-500.0,8.219e-05,2]
[356169439,1741999832804,-500.0,8.219e-05,2]
[356169440,1741999832814,-500.0,8.219e-05,2]
[356169441,1741999832824,-500.0,8.219e-05,2]
[356169442,1741999832833,-500.0,8.219e-05,2]
[356169443,1741999832842,-500.0,8.219e-05,2]
[356169444,1741999832851,-500.0,8.219e-05,2]
[356169445,1741999832862,-500.0,8.219e-05,2]
[356169446,1741999832871,-500.0,8.219e-05,2]
[356169447,1741999832880,-500.0,8.219e-05,2]
[356169448,1741999832890,-500.0,8.219e-05,2]
[356169449,1741999832899,-500.0,8.219e-05,2]
[356169450,1741999832909,-500.0,8.219e-05,2]
[356169451,1741999832918,-500.0,8.219e-05,2]
[356169452,1741999832928,-588.45553264,8.219e-05,2]
[356169453,1741999832937,-500.0,8.219e-05,2]
[356169454,1741999832947,-763.94,8.219e-05,2]
[356169455,1741999832956,-500.0,8.219e-05,2]
[356169456,1741999832966,-500.0,8.219e-05,2]
[356169457,1741999832975,-500.0,8.219e-05,2]
[356169458,1741999832985,-504.99093472,8.219e-05,2]
[356169459,1741999832996,-500.0,8.219e-05,2]
[356169460,1741999833006,-500.0,8.219e-05,2]
[356169461,1741999833015,-500.0,8.219e-05,2]
[356169462,1741999833025,-789.04,8.219e-05,2]
[356169463,1741999833034,-500.0,8.219e-05,2]
[356169464,1741999833044,-500.0,8.219e-05,2]
[356169465,1741999833055,-500.0,8.219e-05,2]
[356169466,1741999833065,-500.0,8.219e-05,2]
[356169467,1741999833075,-709.64,8.219e-05,2]
[356169468,1741999833085,-534.47,8.219e-05,2]
[356169469,1741999833097,-500.0,8.219e-05,2]
[356169470,1741999833110,-500.0,8.219e-05,2]
[356169471,1741999833120,-500.0,8.219e-05,2]
[356169472,1741999833131,-500.0,8.219e-05,2]
[356169473,1741999833144,-500.0,8.219e-05,2]
[356169474,1741999833155,-512.16861648,8.219e-05,2]
[356169475,1741999833166,-1685.97,8.219e-05,2]
[356169476,1741999833176,-562.87763322,8.219e-05,2]
[356169477,1741999833186,-142.37016764,8.219e-05,2]
[356169490,1741999838109,-357.62983236,8.219e-05,2]
[356169491,1741999838118,-500.0,8.219e-05,2]
[356169492,1741999838129,-500.0,8.219e-05,2]
[356169493,1741999838138,-500.0,8.219e-05,2]
[356169494,1741999838147,-500.0,8.219e-05,2]
[356169495,1741999838157,-500.0,8.219e-05,2]
[356169496,1741999838166,-500.0,8.219e-05,2]
[356169497,1741999838175,-500.0,8.219e-05,2]
[356169498,1741999838185,-500.0,8.219e-05,2]
[356169499,1741999838194,-500.0,8.219e-05,2]
[356169501,1741999838203,-500.0,8.219e-05,2]
[356169502,1741999838212,-500.0,8.219e-05,2]
[356169504,1741999838222,-540.94,8.219e-05,2]
[356169506,1741999838231,-500.0,8.219e-05,2]
[356169508,1741999838240,-500.0,8.219e-05,2]
[356169510,1741999838250,-500.0,8.219e-05,2]
[356169512,1741999838259,-500.0,8.219e-05,2]
[356169514,1741999838268,-500.0,8.219e-05,2]
[356169516,1741999838278,-741.97,8.219e-05,2]
[356169518,1741999838288,-500.0,8.219e-05,2]
[356169520,1741999838298,-500.0,8.219e-05,2]
[356169522,1741999838307,-500.0,8.219e-05,2]
[356169524,1741999838317,-500.0,8.219e-05,2]
[356169526,1741999838327,-500.0,8.219e-05,2]
[356169528,1741999838336,-500.0,8.219e-05,2]
[356169530,1741999838346,-500.0,8.219e-05,2]
[356169531,1741999838355,-500.0,8.219e-05,2]
[356169532,1741999838364,-500.0,8.219e-05,2]
[356169533,1741999838373,-500.0,8.219e-05,2]
[356169534,1741999838382,-500.0,8.219e-05,2]
[356169535,1741999838392,-500.0,8.219e-05,2]
[356169536,1741999838402,-501.31,8.219e-05,2]
[356169537,1741999838411,-500.0,8.219e-05,2]
[356169538,1741999838421,-500.0,8.219e-05,2]
[356169539,1741999838430,-586.17,8.219e-05,2]
[356169540,1741999838439,-500.0,8.219e-05,2]
[356169541,1741999838448,-500.0,8.219e-05,2]
[356169542,1741999838458,-500.0,8.219e-05,2]
[356169543,1741999838467,-500.0,8.219e-05,2]
[356169544,1741999838476,-500.0,8.219e-05,2]
[356169545,1741999838486,-500.0,8.219e-05,2]
[356169546,1741999838495,-1021.52,8.219e-05,2]
[356169547,1741999838504,-500.0,8.219e-05,2]
[356169548,1741999838513,-500.0,8.219e-05,2]
[356169549,1741999838523,-500.0,8.219e-05,2]
[356169550,1741999838532,-500.0,8.219e-05,2]
[356169551,1741999838541,-1113.88,8.219e-05,2]
[356169552,1741999838550,-500.0,8.219e-05,2]
[356169553,1741999838560,-500.0,8.219e-05,2]
[356169554,1741999838569,-506.86519217,8.219e-05,2]
[356169555,1741999838579,-500.0,8.219e-05,2]
[356169556,1741999838589,-500.0,8.219e-05,2]
[356169557,1741999838598,-500.0,8.219e-05,2]
[356169558,1741999838607,-500.0,8.219e-05,2]
[356169559,1741999838616,-500.0,8.219e-05,2]
[356169560,1741999838626,-500.0,8.219e-05,2]
[356169561,1741999838635,-306.43947124,8.219e-05,2]
[356169562,1741999838645,-500.0,8.219e-05,2]
[356169563,1741999838655,-799.71,8.219e-05,2]
[356169564,1741999838664,-590.31,8.219e-05,2]
[356169565,1741999838674,-500.0,8.219e-05,2]
[356169566,1741999838683,-523.47,8.219e-05,2]
[356169567,1741999838692,-500.0,8.219e-05,2]
[356169568,1741999838701,-500.0,8.219e-05,2]
[356169569,1741999838711,-500.0,8.219e-05,2]
[356169570,1741999838721,-500.0,8.219e-05,2]
[356169571,1741999838730,-642.72,8.219e-05,2]
[356169572,1741999838740,-503.41,8.219e-05,2]
[356169573,1741999838750,-500.0,8.219e-05,2]
[356169574,1741999838759,-2212.16537012,8.219e-05,2]
[356169575,1741999838768,-500.0,8.219e-05,2]
[356169576,1741999838778,-309.00767752,8.219e-05,2]
[356169577,1741999838787,-510.37000107,8.219e-05,2]
[356169578,1741999838796,-500.0,8.219e-05,2]
[356169579,1741999838805,-500.0,8.219e-05,2]
[356169580,1741999838815,-500.0,8.219e-05,2]
[356169581,1741999838824,-428.4761151,8.219e-05,2]
[356169582,1741999838833,-500.0,8.219e-05,2]
[356169583,1741999838842,-500.0,8.219e-05,2]
[356169584,1741999838851,-500.0,8.219e-05,2]
[356169585,1741999838861,-500.0,8.219e-05,2]
[356169586,1741999838871,-500.0,8.219e-05,2]
[356169587,1741999838880,-500.0,8.219e-05,2]
[356169588,1741999838889,-500.0,8.219e-05,2]
[356169589,1741999838899,-500.0,8.219e-05,2]
[356169590,1741999838908,-500.0,8.219e-05,2]
[356169591,1741999838918,-922.65,8.219e-05,2]
[356169592,1741999838927,-8849.56,8.219e-05,2]
[356169593,1741999838937,-500.0,8.219e-05,2]
[356169594,1741999838946,-500.0,8.219e-05,2]
[356169595,1741999838955,-2292.18,8.219e-05,2]
[356169596,1741999838964,-500.0,8.219e-05,2]
[356169597,1741999838973,-3483.72,8.219e-05,2]
[356169598,1741999838983,-500.0,8.219e-05,2]
[356169599,1741999838992,-500.0,8.219e-05,2]
[356169600,1741999839001,-578.68,8.219e-05,2]
[356169601,1741999839010,-500.0,8.219e-05,2]
[356169602,1741999839020,-621.34205604,8.219e-05,2]
[356169603,1741999839029,-434.46138596,8.219e-05,2]
[356169604,1741999839039,-500.0,8.219e-05,2]
[356169605,1741999839049,-500.0,8.219e-05,2]
[356169606,1741999839062,-500.0,8.219e-05,2]
[356169607,1741999839072,-500.0,8.219e-05,2]
[356169608,1741999839080,-7028.82,8.219e-05,2]
[356169609,1741999839088,-500.0,8.219e-05,2]
[356169610,1741999839098,-500.0,8.219e-05,2]
[356169611,1741999839107,-16395.87,8.219e-05,2]
[356169612,1741999839116,-500.0,8.219e-05,2]
[356169613,1741999839125,-500.0,8.219e-05,2]
[356169614,1741999839136,-672.62,8.219e-05,2]
[356169615,1741999839146,-1537.89,8.219e-05,2]
[356169616,1741999839155,-500.0,8.219e-05,2]
[356169617,1741999839164,-500.0,8.219e-05,2]
[356169618,1741999839174,-565.1,8.219e-05,2]
[356169619,1741999839183,-630.2,8.219e-05,2]
[356169620,1741999839192,-500.0,8.219e-05,2]
[356169621,1741999839202,-514.00624379,8.219e-05,2]
[356169622,1741999839212,-500.0,8.219e-05,2]
[356169623,1741999839221,-553.16,8.219e-05,2]
[356169624,1741999839231,-950.32,8.219e-05,2]
[356169625,1741999839240,-774.26,8.219e-05,2]
[356169626,1741999839250,-517.06809337,8.219e-05,2]
[356169627,1741999839259,-500.0,8.219e-05,2]
[356169628,1741999839269,-1126.96,8.219e-05,2]
[356169629,1741999839278,-500.0,8.219e-05,2]
[356169630,1741999839287,-500.0,8.219e-05,2]
[356169631,1741999839297,-500.0,8.219e-05,2]
[356169632,1741999839306,-1063.67,8.219e-05,2]
[356169633,1741999839316,-500.0,8.219e-05,2]
[356169634,1741999839325,-500.0,8.219e-05,2]
[356169635,1741999839335,-500.0,8.219e-05,2]
[356169636,1741999839344,-1046.12,8.219e-05,2]
[356169637,1741999839353,-500.0,8.219e-05,2]
[356169638,1741999839364,-9854.73,8.219e-05,2]
[356169639,1741999839374,-506.05569522,8.219e-05,2]
[356169640,1741999839384,-500.0,8.219e-05,2]
[356169641,1741999839394,-500.0,8.219e-05,2]
[356169642,1741999839404,-5040.97,8.219e-05,2]
[356169643,1741999839414,-645.1,8.219e-05,2]
[356169644,1741999839423,-1922.09,8.219e-05,2]
[356169645,1741999839433,-14220.01,8.219e-05,2]
[356169646,1741999839443,-3708.93,8.219e-05,2]
[356169647,1741999839452,-500.0,8.219e-05,2]
[356169648,1741999839463,-500.0,8.219e-05,2]
[356169649,1741999839473,-500.0,8.219e-05,2]
[356169650,1741999839484,-500.0,8.219e-05,2]
[356169651,1741999839494,-500.0,8.219e-05,2]
[356169652,1741999839503,-500.0,8.219e-05,2]
[356169653,1741999839512,-500.0,8.219e-05,2]
[356169654,1741999839522,-500.0,8.219e-05,2]
[356169655,1741999839532,-500.0,8.219e-05,2]
[356169656,1741999839541,-500.0,8.219e-05,2]
[356169657,1741999839550,-500.0,8.219e-05,2]
[356169658,1741999839559,-1145.8,8.219e-05,2]
[356169659,1741999839569,-500.0,8.219e-05,2]
[356169660,1741999839578,-1391.73,8.219e-05,2]
[356169661,1741999839587,-500.0,8.219e-05,2]
[356169662,1741999839597,-500.0,8.219e-05,2]
[356169663,1741999839606,-500.0,8.219e-05,2]
[356169664,1741999839615,-500.0,8.219e-05,2]
[356169665,1741999839625,-500.0,8.219e-05,2]
[356169666,1741999839635,-562.73,8.219e-05,2]
[356169667,1741999839644,-7425.27,8.219e-05,2]
[356169668,1741999839654,-506.08403907,8.219e-05,2]
[356169669,1741999839664,-516.45559555,8.219e-05,2]
[356169670,1741999839673,-3506.81,8.219e-05,2]
[356169671,1741999839682,-500.0,8.219e-05,2]
[356169672,1741999839692,-500.0,8.219e-05,2]
[356169674,1741999839702,-500.0,8.219e-05,2]
[356169675,1741999839711,-1306.45,8.219e-05,2]
[356169676,1741999839721,-500.0,8.219e-05,2]
[356169677,1741999839730,-13462.42,8.219e-05,2]
[356169678,1741999839739,-725.29,8.219e-05,2]
[356169679,1741999839749,-331.92155426,8.219e-05,2]
[356169680,1741999839758,-500.0,8.219e-05,2]
[356169681,1741999839768,-500.0,8.219e-05,2]
[356169682,1741999839777,-500.0,8.219e-05,2]
[356169683,1741999839786,-500.0,8.219e-05,2]
[356169684,1741999839796,-500.0,8.219e-05,2]
[356169685,1741999839805,-500.0,8.219e-05,2]
[356169686,1741999839815,-500.0,8.219e-05,2]
[356169687,1741999839824,-579.89127843,8.219e-05,2]
[356169688,1741999839834,-656.02,8.219e-05,2]
[356169689,1741999839844,-2902.75,8.219e-05,2]
[356169690,1741999839853,-821.38,8.219e-05,2]
[356169691,1741999839863,-691.43,8.219e-05,2]
[356169692,1741999839873,-5916.21,8.219e-05,2]
[356169693,1741999839883,-500.0,8.219e-05,2]
[356169694,1741999839892,-856.3,8.219e-05,2]
[356169695,1741999839904,-554.75,8.219e-05,2]
[356169696,1741999839915,-15992.59,8.219e-05,2]
[356169697,1741999839925,-2689.3,8.219e-05,2]
[356169698,1741999839935,-464.09170446,8.219e-05,2]
[356169699,1741999839944,-500.0,8.219e-05,2]
[356169700,1741999839954,-507.79,8.219e-05,2]
[356169701,1741999839963,-500.0,8.219e-05,2]
[356169702,1741999839973,-500.0,8.219e-05,2]
[356169703,1741999839983,-529.97,8.219e-05,2]
[356169704,1741999839992,-500.0,8.219e-05,2]
[356169705,1741999840002,-6275.73,8.219e-05,2]
[356169706,1741999840011,-500.0,8.219e-05,2]
[356169707,1741999840021,-500.0,8.219e-05,2]
[356169709,1741999840030,-760.58,8.219e-05,2]
[356169710,1741999840040,-500.0,8.219e-05,2]
[356169712,1741999840050,-141803.26884916,8.219e-05,2]
[356169715,1741999840071,-93512.96115084,8.219e-05,2]
[356169717,1741999840080,-500.00000001,8.219e-05,2]
[356169719,1741999840090,-500.0,8.219e-05,2]
[356169721,1741999840101,-500.0,8.219e-05,2]
[356169723,1741999840111,-500.0,8.219e-05,2]
[356169724,1741999840121,-500.0,8.219e-05,2]
[356169726,1741999840137,-500.0,8.219e-05,2]
[356169728,1741999840148,-500.0,8.219e-05,2]
[356169730,1741999840158,-500.0,8.219e-05,2]
[356169731,1741999840168,-500.0,8.219e-05,2]
[356169733,1741999840178,-500.0,8.219e-05,2]
[356169734,1741999840188,-2095.44,8.219e-05,2]
[356169735,1741999840198,-505.83303495,8.219e-05,2]
[356169736,1741999840208,-6398.36,8.219e-05,2]
[356169737,1741999840218,-500.0,8.219e-05,2]
[356169738,1741999840228,-500.0,8.219e-05,2]
[356169739,1741999840238,-500.0,8.219e-05,2]
[356169740,1741999840248,-500.0,8.219e-05,2]
[356169741,1741999840259,-13672.28,8.219e-05,2]
[356169743,1741999840268,-3607.64,8.219e-05,2]
[356169745,1741999840278,-500.0,8.219e-05,2]
[356169746,1741999840287,-500.0,8.219e-05,2]
[356169747,1741999840296,-5097.61,8.219e-05,2]
[356169748,1741999840306,-347.15894934,8.219e-05,2]
[356169749,1741999840316,-680.76,8.219e-05,2]
[356169750,1741999840326,-1019.2,8.219e-05,2]
[356169751,1741999840335,-500.0,8.219e-05,2]
[356169752,1741999840344,-500.0,8.219e-05,2]
[356169753,1741999840359,-1550.35,8.219e-05,2]
[356169754,1741999840368,-660.49,8.219e-05,2]
[356169755,1741999840379,-500.0,8.219e-05,2]
[356169756,1741999840393,-500.0,8.219e-05,2]
[356169757,1741999840402,-10616.29,8.219e-05,2]
[356169758,1741999840413,-1818.82,8.219e-05,2]
[356169759,1741999840422,-500.0,8.219e-05,2]
[356169760,1741999840431,-500.0,8.219e-05,2]
[356169761,1741999840441,-500.0,8.219e-05,2]
[356169762,1741999840451,-500.0,8.219e-05,2]
[356169763,1741999840460,-500.0,8.219e-05,2]
[356169764,1741999840469,-1785.59,8.219e-05,2]
[356169765,1741999840479,-500.0,8.219e-05,2]
[356169766,1741999840488,-503.8757914,8.219e-05,2]
[356169767,1741999840498,-151.0,8.219e-05,2]
[356169768,1741999840507,-151.0,8.219e-05,2]
[356169769,1741999840517,-150.0,8.244e-05,2]
[356169770,1741999840527,-1914.0,8.244e-05,2]
[356169771,1741999840536,-540.0,8.244e-05,2]
[356169773,1741999840546,-2270.0,8.244e-05,2]
[356169775,1741999840555,-399.0,8.244e-05,2]
[356169777,1741999840565,-399.0,8.244e-05,2]
[356169779,1741999840575,-833.875,8.248e-05,2]
[356169781,1741999840585,-353.0,8.248e-05,2]
[356169783,1741999840595,-403.47516316,8.248e-05,2]
[356169785,1741999840604,-800.0,8.263e-05,2]
[356169787,1741999840615,-800.0,8.269e-05,2]
[356169789,1741999840624,-800.0,8.286e-05,2]
[356169791,1741999840634,-166.536,8.292e-05,2]
[356169793,1741999840644,-800.0,8.325e-05,2]
[356169795,1741999840654,-500.0,8.493e-05,2]
[356169797,1741999840663,-500.0,8.493e-05,2]
[356169799,1741999840675,-500.0,8.493e-05,2]
[356169800,1741999840685,-500.0,8.493e-05,2]
[356169801,1741999840694,-500.0,8.493e-05,2]
[356169802,1741999840704,-500.0,8.493e-05,2]
[356169803,1741999840713,-500.0,8.493e-05,2]
[356169804,1741999840723,-500.0,8.493e-05,2]
[356169805,1741999840732,-500.0,8.493e-05,2]